bitfinex/quotes_BTCUSD_20250225
["timestamp","ask_amount","ask_price","bid_price","bid_amount"]
[1740487391221,0.01840225,89407.0,89395.0,0.00160559]
[1740487391590,0.01840225,89407.0,89396.0,0.00316139]
[1740487391925,0.01840225,89407.0,89397.0,0.00156562]
[1740487392281,0.01840225,89407.0,89398.0,0.00316139]
[1740487392505,0.01840225,89407.0,89399.0,0.0015656]
[1740487393925,0.01840225,89407.0,89399.0,0.3235]
[1740487394239,0.01840225,89407.0,89400.0,0.00316139]
[1740487396263,0.01840225,89407.0,89401.0,0.41548621]
[1740487396479,0.01840225,89407.0,89401.0,0.41392051]
[1740487396688,0.01840225,89407.0,89402.0,0.00156549]
[1740487396885,0.01840225,89407.0,89402.0,0.0047542]
[1740487400131,0.033672,89430.0,89402.0,0.0047542]
[1740487400329,0.033672,89430.0,89403.0,0.3235]
[1740487400527,0.033672,89430.0,89404.0,0.0015654]
[1740487400892,0.001697,89435.0,89405.0,0.13602956]
[1740487401087,0.001697,89435.0,89407.0,0.01454085]
[1740487401291,0.001697,89435.0,89408.0,0.00156528]
[1740487401498,0.001697,89435.0,89408.0,0.32825399]
[1740487401701,0.001697,89435.0,89408.0,0.32668871]
[1740487401900,0.001697,89435.0,89410.0,0.09042051]
[1740487402112,0.001697,89435.0,89411.0,0.00156524]
[1740487402306,0.001697,89435.0,89411.0,0.00475395]
[1740487402980,0.02374011,89433.0,89411.0,0.00475395]
[1740487403359,0.01755236,89428.0,89411.0,0.00475395]
[1740487403936,0.01755236,89428.0,89411.0,0.00318871]
[1740487404139,0.1,89422.0,89390.0,0.3235]
[1740487404340,0.1,89422.0,89412.0,0.00318871]
[1740487404586,0.1,89422.0,89395.0,0.00160559]
[1740487404587,0.05932124,89421.0,89395.0,0.00160559]
[1740487404942,0.09299724,89421.0,89396.0,0.09358155]
[1740487405141,0.09299724,89421.0,89397.0,0.0015656]
[1740487405748,0.4285,89410.0,89395.0,4e-05]
[1740487405927,0.01164,89409.0,89395.0,4e-05]
[1740487406934,0.35,89407.0,89395.0,4e-05]
[1740487407134,0.01164,89409.0,89395.0,4e-05]
[1740487407135,0.1,89401.0,89395.0,4e-05]
[1740487407762,0.26755794,89400.0,89395.0,4e-05]
[1740487408162,0.31919973,89400.0,89395.0,4e-05]
[1740487409074,0.01164,89404.0,89396.0,0.09042051]
[1740487409295,0.01164,89404.0,89397.0,0.00482268]
[1740487409872,0.01164,89404.0,89397.0,0.00482269]
[1740487410033,0.01164,89404.0,89397.0,0.00325686]
[1740487410251,0.01164,89404.0,89397.0,0.0048227]
[1740487410452,0.02621808,89404.0,89397.0,0.0048227]
[1740487410653,0.12553778,89404.0,89397.0,0.00325686]
[1740487411034,0.24822145,89403.0,89395.0,4e-05]
[1740487411257,0.34822145,89403.0,89395.0,4e-05]
[1740487411476,0.11681471,89403.0,89395.0,4e-05]
[1740487411912,0.05669879,89403.0,89395.0,4e-05]
[1740487413373,0.479502,89402.0,89395.0,4e-05]
[1740487413573,0.09996,89398.0,89395.0,4e-05]
[1740487413905,0.25,89396.0,89395.0,4e-05]
[1740487414112,0.09996,89398.0,89395.0,4e-05]
[1740487414391,0.05669879,89400.0,89395.0,4e-05]
[1740487414392,0.478138,89397.0,89395.0,4e-05]
[1740487414594,0.09996,89398.0,89395.0,4e-05]
[1740487414769,0.56755047,89397.0,89395.0,4e-05]
[1740487414953,0.11134647,89397.0,89395.0,4e-05]
[1740487415139,0.05669879,89397.0,89395.0,4e-05]
[1740487415553,0.0993197,89405.0,89395.0,4e-05]
[1740487415775,0.0993197,89405.0,89396.0,0.09042051]
[1740487416013,0.0993197,89405.0,89396.0,0.0936912]
[1740487416187,0.0993197,89405.0,89397.0,0.00156585]
[1740487416637,0.0993197,89405.0,89398.0,0.00327069]
[1740487416846,0.0175563,89404.0,89399.0,0.00156581]
[1740487417187,0.25,89429.0,89400.0,0.00326305]
[1740487417387,0.05669879,89423.0,89401.0,0.00156558]
[1740487417612,0.0008476,89403.0,89401.0,0.00480611]
[1740487420676,0.0008476,89403.0,89401.0,0.00484611]
[1740487426215,0.01840224,89403.0,89401.0,0.00484611]
[1740487426577,0.01840224,89403.0,89401.0,0.00328053]
[1740487429133,0.0008476,89403.0,89401.0,0.00328053]
[1740487429293,0.0008476,89403.0,89401.0,4e-05]
[1740487429294,0.01463224,89403.0,89401.0,4e-05]
[1740487429495,0.0008476,89403.0,89401.0,4e-05]
[1740487430057,0.79090979,89402.0,89401.0,4e-05]
[1740487430278,0.70254979,89402.0,89401.0,4e-05]
[1740487430454,0.80250979,89402.0,89401.0,4e-05]
[1740487430656,0.70254979,89402.0,89401.0,4e-05]
[1740487430958,0.42958879,89402.0,89401.0,4e-05]
[1740487431207,0.2616,89402.0,89401.0,4e-05]
[1740487431409,0.0008476,89403.0,89401.0,4e-05]
[1740487433582,0.0048476,89403.0,89401.0,0.00104]
[1740487433783,0.02240449,89403.0,89401.0,0.00104]
[1740487434203,0.01840449,89403.0,89401.0,4e-05]
[1740487434404,0.02240449,89403.0,89401.0,0.00104]
[1740487435732,0.01840449,89403.0,89401.0,4e-05]
[1740487436112,0.02240449,89403.0,89401.0,0.00104]
[1740487437072,0.02540449,89403.0,89401.0,0.00204]
[1740487437837,0.10040726,89402.0,89401.0,0.00204]
[1740487438729,0.10040726,89402.0,89401.0,0.00104]
[1740487438878,0.10040726,89402.0,89401.0,4e-05]
[1740487439202,0.10440726,89402.0,89401.0,0.00104]
[1740487439438,0.10740726,89402.0,89401.0,0.00527493]
[1740487439642,0.10740726,89402.0,89401.0,0.00204]
[1740487439847,0.10740726,89402.0,89401.0,0.00527493]
[1740487440018,0.10740726,89402.0,89401.0,0.00204]
[1740487440769,0.10740726,89402.0,89401.0,0.00527493]
[1740487441879,0.10340726,89402.0,89401.0,0.00596953]
[1740487442035,0.10440726,89402.0,89401.0,0.00596953]
[1740487442437,0.10740726,89402.0,89401.0,0.00696953]
[1740487442635,0.10340726,89402.0,89401.0,0.00496953]
[1740487442869,0.10740726,89402.0,89401.0,0.00496953]
[1740487443042,0.01,89402.0,89401.0,0.00496953]
[1740487443452,0.02755491,89402.0,89401.0,0.00496953]
[1740487445372,0.06004834,89430.0,89401.0,0.00496953]
[1740487445572,0.09996,89423.0,89401.0,0.0017346]
[1740487445842,0.25,89421.0,89401.0,0.0017346]
[1740487446044,0.25,89419.0,89401.0,0.0017346]
[1740487446323,0.09996,89412.0,89401.0,0.0017346]
[1740487446532,0.09996,89407.0,89401.0,0.0027346]
[1740487446705,0.25,89405.0,89401.0,0.0037346]
[1740487446973,0.2999,89403.0,89401.0,0.0027346]
[1740487447161,0.8315357,89402.0,89401.0,0.0027346]
[1740487447570,0.5243807,89402.0,89401.0,0.0037346]
[1740487447944,0.5243807,89402.0,89401.0,0.0027346]
[1740487448153,0.25,89402.0,89401.0,0.0027346]
[1740487448360,0.25,89402.0,89401.0,0.0037346]
[1740487448752,0.26755681,89402.0,89401.0,0.0027346]
[1740487448947,0.01755681,89402.0,89401.0,0.0017346]
[1740487449194,0.01755681,89402.0,89401.0,0.0027346]
[1740487449515,0.01755681,89402.0,89401.0,0.0017346]
[1740487449720,0.01855681,89402.0,89401.0,0.0017346]
[1740487449916,0.001,89402.0,89401.0,0.0017346]
[1740487452258,0.02736,89402.0,89401.0,0.0017346]
[1740487454598,0.04491704,89402.0,89401.0,0.0017346]
[1740487457381,2.90390131,89402.0,89401.0,0.0017346]
[1740487457583,2.90390131,89402.0,89350.0,0.3235]
[1740487457584,0.09996,89390.0,89362.0,0.0822]
[1740487457755,0.25,89388.0,89363.0,0.00156634]
[1740487457961,0.25,89386.0,89363.0,0.00156634]
[1740487458197,0.25,89384.0,89363.0,0.00156634]
[1740487458400,0.25,89382.0,89363.0,0.00156634]
[1740487458805,0.25,89382.0,89369.0,0.0026958]
[1740487459007,0.24999853,89382.0,89369.0,0.0016958]
[1740487459344,0.007,89384.0,89369.0,0.0026958]
[1740487459566,0.007,89384.0,89369.0,0.0036958]
[1740487459567,0.09996,89379.0,89369.0,0.0036958]
[1740487459791,0.09996,89374.0,89369.0,0.0026958]
[1740487459994,0.09996,89374.0,89369.0,0.0036958]
[1740487460377,0.09996,89374.0,89369.0,0.0026958]
[1740487460789,0.09996,89374.0,89369.0,0.0016958]
[1740487461540,0.25,89372.0,89369.0,0.0016958]
[1740487461742,0.25,89370.0,89369.0,0.0026958]
[1740487461925,0.999167,89370.0,89369.0,0.0016958]
[1740487462133,1.001813,89370.0,89369.0,0.0016958]
[1740487462290,0.887171,89370.0,89369.0,0.0016958]
[1740487462689,0.9869841,89370.0,89369.0,0.0026958]
[1740487463108,0.9869841,89370.0,89369.0,0.0016958]
[1740487463321,0.9939841,89370.0,89369.0,0.0026958]
[1740487464221,1.0009841,89370.0,89369.0,0.0026958]
[1740487464681,0.9869841,89370.0,89369.0,0.0016958]
[1740487464882,1.0823441,89370.0,89369.0,0.0016958]
[1740487465085,1.0939441,89370.0,89369.0,0.0016958]
[1740487465515,1.1185082,89370.0,89369.0,0.0016958]
[1740487465752,1.1115082,89370.0,89369.0,0.0016958]
[1740487465934,1.1522082,89370.0,89369.0,0.0016958]
[1740487466853,1.1452082,89370.0,89369.0,0.0016958]
[1740487467438,1.1522082,89370.0,89369.0,0.0016958]
[1740487468644,1.25358947,89370.0,89369.0,0.0016958]
[1740487469436,1.15377637,89370.0,89369.0,0.0016958]
[1740487470273,1.13621227,89370.0,89369.0,0.0016958]
[1740487470823,1.12221227,89370.0,89369.0,0.0016958]
[1740487471029,1.13621227,89370.0,89369.0,0.0016958]
[1740487471265,0.51064127,89370.0,89369.0,0.0016958]
[1740487471467,0.5617054,89370.0,89369.0,0.0016958]
[1740487472133,0.5547054,89370.0,89369.0,0.0016958]
[1740487472295,2.4599904,89370.0,89369.0,0.0016958]
[1740487472497,2.6585534,89370.0,89369.0,0.0016958]
[1740487472814,2.4567944,89370.0,89369.0,0.0016958]
[1740487473346,2.3330954,89370.0,89369.0,0.0016958]
[1740487474145,2.3400954,89370.0,89369.0,0.0016958]
[1740487474344,2.3923214,89370.0,89369.0,0.0016958]
[1740487474547,2.40988636,89370.0,89369.0,0.0016958]
[1740487475172,2.95852721,89370.0,89369.0,0.0016958]
[1740487475374,2.95852721,89370.0,89369.0,0.00018259]
[1740487475531,3.0157521,89370.0,89369.0,0.00018259]
[1740487476577,3.03150359,89370.0,89369.0,0.00018259]
[1740487476798,2.85433861,89370.0,89369.0,0.00018259]
[1740487476999,1.93956961,89370.0,89369.0,0.00018259]
[1740487477329,2.05407046,89370.0,89369.0,0.00018259]
[1740487477735,1.99684557,89370.0,89369.0,0.00018259]
[1740487478064,1.96009408,89370.0,89369.0,0.00018259]
[1740487478268,2.08095104,89370.0,89369.0,0.00018259]
[1740487479122,2.15855104,89370.0,89369.0,0.00018259]
[1740487479297,2.14798608,89370.0,89369.0,0.00018259]
[1740487479480,2.14098608,89370.0,89369.0,0.00018259]
[1740487479677,2.14798608,89370.0,89369.0,0.00018259]
[1740487480652,2.15498608,89370.0,89369.0,0.00018259]
[1740487481054,2.14798608,89370.0,89369.0,0.00018259]
[1740487481677,2.15498608,89370.0,89369.0,0.00018259]
[1740487482824,2.14338608,89370.0,89369.0,0.00018259]
[1740487483166,2.15494608,89370.0,89369.0,0.00018259]
[1740487483576,2.17251167,89370.0,89369.0,0.00018259]
[1740487483778,2.16551167,89370.0,89369.0,0.00018259]
[1740487484193,2.15851167,89370.0,89369.0,0.00018259]
[1740487484396,1.26126467,89370.0,89369.0,0.00018259]
[1740487484597,5.66293367,89370.0,89369.0,0.00018259]
[1740487485599,5.68568516,89370.0,89369.0,0.00018259]
[1740487486551,5.74291005,89370.0,89369.0,0.00018259]
[1740487486982,5.52560105,89370.0,89369.0,0.00018259]
[1740487487442,5.52560105,89370.0,89369.0,1.676e-05]
[1740487487443,5.27045871,89370.0,89369.0,1.676e-05]
[1740487487660,0.09996,89357.0,89337.0,0.09042051]
[1740487487875,4.55906985,89357.0,89337.0,0.09042051]
[1740487488298,4.39104485,89357.0,89337.0,0.09042051]
[1740487488551,4.36981536,89357.0,89337.0,0.09042051]
[1740487488776,4.36981536,89357.0,89327.0,0.0008483]
[1740487488777,5.06422912,89357.0,89327.0,0.0008483]
[1740487488989,5.17808608,89357.0,89327.0,0.0008483]
[1740487489200,4.94942957,89357.0,89327.0,0.0008483]
[1740487489627,5.75665446,89357.0,89327.0,0.0008483]
[1740487490083,5.76365446,89357.0,89327.0,0.0008483]
[1740487490954,6.45665446,89357.0,89327.0,0.0008483]
[1740487491203,6.46365446,89357.0,89327.0,0.0008483]
[1740487491600,6.27375043,89357.0,89327.0,0.0008483]
[1740487491828,5.75477143,89357.0,89327.0,0.0008483]
[1740487492141,5.66747843,89357.0,89327.0,0.0008483]
[1740487492715,5.64990946,89357.0,89327.0,0.0008483]
[1740487492943,5.64290946,89357.0,89327.0,0.0008483]
[1740487493296,5.67662546,89357.0,89327.0,0.0008483]
[1740487493743,5.68362546,89357.0,89327.0,0.0008483]
[1740487494159,5.66962546,89357.0,89327.0,0.0008483]
[1740487494366,5.68362546,89357.0,89327.0,0.0008483]
[1740487494866,5.77662546,89357.0,89327.0,0.0008483]
[1740487495069,5.68362546,89357.0,89327.0,0.0008483]
[1740487495283,5.60395746,89357.0,89327.0,0.0008483]
[1740487495947,5.62152638,89357.0,89327.0,0.0008483]
[1740487496229,5.62852638,89357.0,89327.0,0.0008483]
[1740487496465,5.61452638,89357.0,89327.0,0.0008483]
[1740487496701,5.62152638,89357.0,89327.0,0.0008483]
[1740487497383,5.72152638,89357.0,89327.0,0.0008483]
[1740487497640,5.71452638,89357.0,89327.0,0.0008483]
[1740487497886,7.60695138,89357.0,89327.0,0.0008483]
[1740487498102,0.1,89352.0,89326.0,0.08796341]
[1740487498351,0.36450085,89327.0,89326.0,0.08796341]
[1740487498566,2.76166427,89327.0,89326.0,0.08796341]
[1740487498791,2.84344727,89327.0,89326.0,0.08796341]
[1740487498980,2.86101831,89327.0,89326.0,0.08796341]
[1740487499213,2.85132323,89327.0,89326.0,0.08796341]
[1740487499427,2.94226612,89327.0,89326.0,0.08796341]
[1740487499646,2.96501761,89327.0,89326.0,0.08796341]
[1740487500328,2.97201761,89327.0,89326.0,0.08796341]
[1740487500556,1.00617565,89327.0,89326.0,0.08796341]
[1740487501011,2.02703265,89327.0,89326.0,0.08796341]
[1740487501239,0.09996,89324.0,89323.0,0.0815]
[1740487502179,0.46891188,89324.0,89323.0,0.0815]
[1740487502412,0.58276884,89324.0,89323.0,0.0815]
[1740487502853,0.48280884,89324.0,89323.0,0.0815]
[1740487503264,0.12595188,89324.0,89323.0,0.0815]
[1740487503482,0.02457061,89324.0,89323.0,0.1313]
[1740487503666,0.03157061,89324.0,89323.0,0.1313]
[1740487504133,0.23291188,89324.0,89323.0,0.1313]
[1740487504345,0.22591188,89324.0,89323.0,0.1313]
[1740487504555,0.32687457,89324.0,89323.0,0.1313]
[1740487504753,0.33387457,89324.0,89323.0,0.08154]
[1740487504956,0.33387457,89324.0,89323.0,4e-05]
[1740487505164,0.33387457,89324.0,89319.0,0.0016948]
[1740487505165,0.09996,89321.0,89319.0,0.0016948]
[1740487505395,0.915886,89321.0,89319.0,0.0016948]
[1740487505609,1.489154,89321.0,89319.0,0.0016948]
[1740487505820,1.451655,89321.0,89319.0,0.0016948]
[1740487506158,1.101695,89321.0,89319.0,0.0016948]
[1740487506369,0.86810423,89321.0,89319.0,0.0016948]
[1740487506591,0.88708956,89321.0,89319.0,0.0016948]
[1740487507012,0.89408956,89321.0,89319.0,0.0016948]
[1740487507669,0.88210423,89321.0,89319.0,0.0016948]
[1740487507874,1.5035855,89321.0,89319.0,0.0016948]
[1740487508558,1.7605855,89321.0,89319.0,0.0016948]
[1740487508899,1.7605855,89321.0,89320.0,0.0008883]
[1740487509528,1.7675855,89321.0,89320.0,0.0008883]
[1740487509732,1.80596727,89321.0,89320.0,0.0008883]
[1740487509890,1.71366027,89321.0,89320.0,0.0008883]
[1740487510096,1.66752627,89321.0,89320.0,0.0008883]
[1740487510310,1.76843258,89321.0,89320.0,0.0008883]
[1740487511102,1.42670627,89321.0,89320.0,0.0008883]
[1740487511844,0.64948127,89321.0,89320.0,0.0828883]
[1740487512328,0.64948127,89321.0,89320.0,0.0827588]
[1740487512745,0.007,89321.0,89320.0,0.0827588]
[1740487512967,0.09982428,89334.0,89320.0,0.0827588]
[1740487513176,0.014,89321.0,89320.0,0.0827588]
[1740487513607,0.007,89321.0,89320.0,0.0827588]
[1740487513808,0.011,89321.0,89320.0,0.0827588]
[1740487514108,0.005,89321.0,89320.0,0.0827588]
[1740487514411,0.01756908,89326.0,89320.0,0.0827588]
[1740487514607,0.001,89321.0,89320.0,0.0827588]
[1740487515749,0.001,89321.0,89320.0,0.1298588]
[1740487515963,0.01756908,89326.0,89321.0,0.0788]
[1740487516517,0.01756908,89326.0,89321.0,0.0778]
[1740487516918,0.01756908,89326.0,89322.0,0.01291194]
[1740487517125,0.01756908,89326.0,89320.0,0.0478588]
[1740487517868,0.02256908,89326.0,89320.0,0.0478588]
[1740487518310,0.02256908,89326.0,89321.0,0.00156708]
[1740487519064,0.02056908,89326.0,89321.0,0.00156708]
[1740487519237,0.01956908,89326.0,89321.0,0.0782]
[1740487519447,0.02256908,89326.0,89321.0,0.0782]
[1740487519671,0.02056908,89326.0,89321.0,0.0782]
[1740487519839,0.02256908,89326.0,89321.0,0.0782]
[1740487520043,0.01956908,89326.0,89321.0,0.0782]
[1740487520241,0.01956908,89326.0,89322.0,0.00156704]
[1740487520455,0.02156908,89326.0,89322.0,0.00156704]
[1740487522058,0.01756908,89326.0,89322.0,0.00156704]
[1740487522557,0.02256908,89326.0,89322.0,0.00156704]
[1740487522751,0.02256908,89326.0,89323.0,0.0785]
[1740487523033,0.02256908,89326.0,89325.0,0.0785]
[1740487523359,0.005,89326.0,89325.0,0.0785]
[1740487523825,0.0016982,89327.0,89325.0,0.0785]
[1740487524029,0.00043297,89326.0,89325.0,0.0785]
[1740487524647,0.00243297,89326.0,89325.0,0.0785]
[1740487525049,0.00413117,89326.0,89325.0,0.0785]
[1740487525248,0.0036982,89326.0,89325.0,0.0785]
[1740487525651,0.0056982,89326.0,89325.0,0.0785]
[1740487525860,0.0036982,89326.0,89325.0,0.0785]
[1740487526014,0.02126627,89326.0,89325.0,0.0785]
[1740487526220,0.02226627,89326.0,89325.0,0.09303613]
[1740487526440,0.02126627,89326.0,89325.0,0.1238]
[1740487526645,0.04904173,89345.0,89325.0,0.1238]
[1740487526821,0.04904173,89345.0,89327.0,0.0816]
[1740487527027,0.01756748,89339.0,89329.0,0.0816]
[1740487527250,0.04904173,89345.0,89330.0,0.02441353]
[1740487527460,0.04904173,89345.0,89330.0,0.00156685]
[1740487528178,0.04904173,89345.0,89331.0,0.0816]
[1740487528380,0.04310828,89345.0,89332.0,0.00156681]
[1740487529083,0.04910828,89345.0,89332.0,0.00156681]
[1740487529557,0.04310828,89345.0,89332.0,0.00156681]
[1740487529768,0.05510828,89345.0,89332.0,0.00256681]
[1740487529967,0.07789607,89354.0,89332.0,0.00256681]
[1740487530221,0.033702,89356.0,89332.0,0.01551349]
[1740487530500,0.01756679,89342.0,89332.0,0.01551349]
[1740487530748,0.033702,89356.0,89332.0,0.01551349]
[1740487530991,0.005,89345.0,89332.0,0.01451349]
[1740487531230,0.033702,89356.0,89332.0,0.00156681]
[1740487531393,0.5411,89355.0,89332.0,0.00156681]
[1740487531626,0.5411,89355.0,89333.0,0.0764]
[1740487531803,0.007,89355.0,89335.0,0.0473]
[1740487532004,0.007,89355.0,89337.0,0.0764]
[1740487532205,0.007,89355.0,89339.0,0.0764]
[1740487532206,0.006,89345.0,89339.0,0.0764]
[1740487532404,0.006,89345.0,89338.0,0.01409327]
[1740487532405,0.006,89345.0,89340.0,0.07796654]
[1740487532613,0.006,89345.0,89340.0,0.17796654]
[1740487532876,0.3279,89368.0,89344.0,0.0832]
[1740487533011,0.007,89355.0,89346.0,0.0832]
[1740487533213,0.014,89355.0,89348.0,0.0832]
[1740487533411,0.007,89355.0,89349.0,0.00156648]
[1740487533644,0.3295972,89370.0,89349.0,0.00156648]
[1740487534455,0.002,89355.0,89348.0,0.0832]
[1740487534629,0.002,89355.0,89349.0,0.00156653]
[1740487535035,0.002,89355.0,89348.0,0.0832]
[1740487535241,0.3295972,89370.0,89348.0,0.0832]
[1740487535242,0.3295972,89370.0,89349.0,0.00156653]
[1740487535552,0.3295972,89370.0,89349.0,0.01304318]
[1740487535952,0.3295972,89370.0,89349.0,0.00156653]
[1740487536448,0.002,89355.0,89349.0,0.00156653]
[1740487536717,0.3325972,89370.0,89349.0,0.00156653]
[1740487536956,0.1183883,89370.0,89349.0,0.00156653]
[1740487537191,0.1313883,89370.0,89349.0,0.00256653]
[1740487537601,0.1222372,89370.0,89350.0,0.00857665]
[1740487537811,0.01756404,89365.0,89351.0,0.00156654]
[1740487538355,0.002,89355.0,89352.0,0.0763]
[1740487538558,0.002,89355.0,89346.0,0.0763]
[1740487538801,0.002,89355.0,89350.0,0.001]
[1740487539351,0.0175645,89353.0,89337.0,0.0786]
[1740487539548,0.0175645,89353.0,89338.0,0.00156675]
[1740487539753,0.002,89355.0,89338.0,0.00156675]
[1740487539960,0.0337,89361.0,89338.0,0.00156675]
[1740487540461,0.002,89355.0,89338.0,0.00156675]
[1740487540675,0.001,89353.0,89339.0,0.01818646]
[1740487540889,0.002,89355.0,89342.0,0.08]
[1740487541098,0.002,89355.0,89344.0,0.08]
[1740487541318,0.002,89355.0,89345.0,0.08156655]
[1740487541951,0.002,89355.0,89349.0,0.1]
[1740487542156,0.10027419,89372.0,89351.0,0.08]
[1740487542360,0.10027419,89372.0,89353.0,0.0803]
[1740487542563,0.10027419,89372.0,89355.0,0.0803]
[1740487542895,0.01756214,89367.0,89356.0,0.08186639]
[1740487543494,0.01756214,89367.0,89361.0,0.1295]
[1740487543629,0.01756214,89367.0,89363.0,0.0781]
[1740487544035,0.01856214,89367.0,89364.0,0.00156631]
[1740487544321,0.01856214,89367.0,89365.0,0.0781]
[1740487544514,0.01756214,89367.0,89365.0,0.0781]
[1740487544856,0.01856214,89367.0,89365.0,0.0781]
[1740487546013,0.01756214,89367.0,89365.0,0.0781]
[1740487546546,0.01756214,89367.0,89366.0,0.0015664]
[1740487546749,0.01756214,89367.0,89365.0,0.0781]
[1740487547172,0.01756214,89367.0,89365.0,0.0801]
[1740487547576,0.01756214,89367.0,89365.0,0.08166636]
[1740487547780,0.01756214,89367.0,89365.0,0.0801]
[1740487548827,0.01756214,89367.0,89366.0,0.00156636]
[1740487549333,0.01756214,89367.0,89366.0,0.014443]
[1740487549556,0.01756214,89367.0,89366.0,0.00156636]
[1740487549973,0.01756214,89367.0,89365.0,0.0781]
[1740487550182,0.01756214,89367.0,89366.0,0.001]
[1740487550682,0.01756214,89367.0,89365.0,0.0781]
[1740487550938,0.01756214,89367.0,89366.0,0.00156636]
[1740487551494,0.01756214,89367.0,89366.0,0.014443]
[1740487551914,0.01756214,89367.0,89366.0,0.016443]
[1740487552497,0.01756214,89367.0,89366.0,0.016483]
[1740487552875,0.01756214,89367.0,89366.0,0.014483]
[1740487553195,0.01756214,89367.0,89366.0,0.017483]
[1740487553402,0.01756214,89367.0,89366.0,0.00460636]
[1740487555071,0.1162372,89370.0,89366.0,0.00460636]
[1740487555473,0.1162372,89370.0,89366.0,0.00160636]
[1740487555678,0.1162372,89370.0,89366.0,0.00460636]
[1740487556084,0.1162372,89370.0,89366.0,0.00160636]
[1740487556488,0.1162372,89370.0,89366.0,0.00260636]
[1740487557038,0.1162372,89370.0,89366.0,0.00160636]
[1740487557244,0.1162372,89370.0,89366.0,0.024587]
[1740487557703,0.1162372,89370.0,89366.0,0.00160636]
[1740487558048,0.13379799,89370.0,89366.0,0.00160636]
[1740487558254,0.13379799,89370.0,89366.0,0.00260636]
[1740487558667,0.002,89396.0,89366.0,0.00260636]
[1740487558877,0.01756032,89395.0,89366.0,0.00260636]
[1740487559089,0.01756032,89395.0,89367.0,0.02298064]
[1740487559302,0.002,89396.0,89368.0,0.00156611]
[1740487559560,0.002,89395.0,89368.0,0.00156611]
[1740487560004,0.004,89395.0,89368.0,0.00156611]
[1740487560401,0.011,89395.0,89368.0,0.00156611]
[1740487560552,0.03901521,89394.0,89368.0,0.00156611]
[1740487560988,0.011,89395.0,89368.0,0.00156611]
[1740487561598,0.009,89395.0,89368.0,0.00156611]
[1740487561823,0.011,89395.0,89368.0,0.00256611]
[1740487562439,0.002,89389.0,89368.0,0.001]
[1740487563275,0.002,89389.0,89369.0,0.00807062]
[1740487563537,0.002,89389.0,89369.0,0.00963684]
[1740487563740,0.008,89389.0,89369.0,0.00156622]
[1740487563946,0.008,89389.0,89366.0,0.00160622]
[1740487564583,0.002,89389.0,89366.0,0.00160622]
[1740487564793,0.004,89389.0,89368.0,0.001]
[1740487564964,0.002,89379.0,89368.0,0.001]
[1740487565173,0.002,89379.0,89366.0,4e-05]
[1740487565512,0.017562,89376.0,89366.0,0.00104]
[1740487565966,0.017562,89376.0,89366.0,4e-05]
[1740487566371,0.017562,89376.0,89368.0,0.14002051]
[1740487566579,0.017562,89376.0,89370.0,0.0818]
[1740487566777,0.017562,89376.0,89371.0,0.00156625]
[1740487567018,0.017562,89376.0,89373.0,0.0818]
[1740487567220,0.001,89376.0,89375.0,0.0769]
[1740487567424,0.002,89379.0,89375.0,0.0769]
[1740487567630,0.002,89379.0,89376.0,0.00156592]
[1740487567834,0.3279,89405.0,89377.0,0.0801]
[1740487568209,0.1513982,89416.0,89379.0,0.0801]
[1740487568210,0.05504744,89415.0,89379.0,0.0801]
[1740487568352,0.10027419,89400.0,89379.0,0.0801]
[1740487569311,0.10027419,89400.0,89379.0,0.0791]
[1740487569731,0.10227419,89400.0,89379.0,0.0791]
[1740487569867,0.10727419,89400.0,89379.0,0.0791]
[1740487570071,0.10727419,89400.0,89379.0,0.10105605]
[1740487572034,0.007,89400.0,89379.0,0.10105605]
[1740487573134,0.007,89400.0,89380.0,0.09494085]
[1740487573356,0.007,89400.0,89387.0,0.048]
[1740487573520,0.007,89400.0,89388.0,0.0804]
[1740487573716,0.007,89400.0,89390.0,0.0804]
[1740487573948,0.007,89400.0,89392.0,0.01454085]
[1740487574151,0.005,89400.0,89397.0,0.0482]
[1740487574375,0.005,89400.0,89398.0,0.0768]
[1740487574376,0.006,89400.0,89398.0,0.0768]
[1740487574808,0.006,89400.0,89398.0,0.1748]
[1740487574809,0.005,89400.0,89398.0,0.1748]
[1740487575017,0.005,89400.0,89399.0,0.09875605]
[1740487575215,0.005,89400.0,89399.0,0.2614969]
[1740487575389,0.0016982,89416.0,89405.0,0.1]
[1740487575610,0.0016982,89416.0,89406.0,0.0768]
[1740487576412,0.0016982,89416.0,89406.0,0.0758]
[1740487576587,0.0016982,89416.0,89407.0,0.01758]
[1740487577332,0.0016982,89416.0,89410.0,0.1]
[1740487578214,0.0016982,89416.0,89410.0,0.4235]
[1740487578687,0.00160229,89416.0,89410.0,0.3245]
[1740487579149,0.00160229,89416.0,89411.0,0.02440345]
[1740487579494,0.00160229,89416.0,89412.0,0.0818]
[1740487580026,0.00260229,89416.0,89412.0,0.0818]
[1740487580435,0.00360229,89416.0,89412.0,0.0818]
[1740487580761,0.00260229,89416.0,89412.0,0.0818]
[1740487580965,0.00260229,89416.0,89413.0,0.01758]
[1740487580966,0.00360229,89416.0,89413.0,0.01758]
[1740487581183,0.00360229,89416.0,89414.0,0.01454085]
[1740487581578,0.00360229,89416.0,89415.0,0.09004085]
[1740487582429,0.00160229,89416.0,89415.0,0.09004085]
[1740487582779,0.00260229,89416.0,89415.0,0.09004085]
[1740487582992,0.00260229,89416.0,89415.0,0.1144443]
[1740487583485,0.00360229,89416.0,89415.0,0.1154443]
[1740487583687,0.00360229,89416.0,89415.0,0.09104085]
[1740487584189,0.00360229,89416.0,89415.0,0.09804085]
[1740487587468,0.00360229,89416.0,89415.0,0.0835]
[1740487591814,0.00360229,89416.0,89415.0,0.008]
[1740487592769,0.00360229,89416.0,89415.0,0.02254085]
[1740487593210,0.02612515,89458.0,89415.0,0.10444085]
[1740487593431,0.02612515,89458.0,89416.0,0.01454085]
[1740487593634,0.0277357,89458.0,89417.0,0.00156515]
[1740487593840,0.01754833,89448.0,89418.0,0.0206006]
[1740487594063,0.01754833,89448.0,89419.0,0.00156515]
[1740487595267,0.02354833,89448.0,89419.0,0.00156515]
[1740487595679,0.02254833,89448.0,89419.0,0.00156515]
[1740487595887,0.02254833,89448.0,89420.0,0.14004085]
[1740487596085,0.02254833,89448.0,89422.0,0.01454085]
[1740487596306,0.02254833,89448.0,89424.0,0.09314085]
[1740487596502,0.01754833,89448.0,89425.0,0.00156505]
[1740487596706,0.01754833,89448.0,89426.0,0.0821]
[1740487596940,0.02254833,89448.0,89427.0,0.00156504]
[1740487597144,0.01854833,89448.0,89427.0,0.02216564]